[Event "Titled Tuesday Blitz August 08 Early 2023"]
[White "Lehtosaari, Mauri"]
[Black "Kleiman, Jake"]
[WhiteFideId "501999"]
[BlackFideId "2020041"]
[WhiteElo "2522"]
[BlackElo "2650"]
[Result "0-1"]
[Round "8"]
[TimeControl "180+1"]
[Date "2023.08.08"]
[WhiteClock "0:00:00"]
[BlackClock "0:00:13"]
[Board "76"]

1. d4 {[%clk 0:02:47]}  Nf6 {[%clk 0:02:58]} 2. Nf3 {[%clk 0:02:48]}  e6 {[%clk 0:02:58]} 3. Bg5 {[%clk 0:02:49]}  h6 {[%clk 0:02:58]} 4. Bh4 {[%clk 0:02:49]}  d6 {[%clk 0:02:57]} 5. Nbd2 {[%clk 0:02:49]}  g5 {[%clk 0:02:57]} 6. Bg3 {[%clk 0:02:49]}  Nh5 {[%clk 0:02:57]} 7. e3 {[%clk 0:02:49]}  Bg7 {[%clk 0:02:57]} 8. Bd3 {[%clk 0:02:45]}  Nd7 {[%clk 0:02:57]} 9. c3 {[%clk 0:02:45]}  a6 {[%clk 0:02:53]} 10. Qe2 {[%clk 0:02:41]}  b6 {[%clk 0:02:51]} 11. Ng1 {[%clk 0:02:40]}  Nxg3 {[%clk 0:02:48]} 12. hxg3 {[%clk 0:02:41]}  Bb7 {[%clk 0:02:46]} 13. Be4 {[%clk 0:02:41]}  d5 {[%clk 0:02:44]} 14. Bd3 {[%clk 0:02:41]}  Qe7 {[%clk 0:02:42]} 15. f4 {[%clk 0:02:38]}  Nf6 {[%clk 0:02:20]} 16. Ngf3 {[%clk 0:02:35]}  Ne4 {[%clk 0:02:20]} 17. Nf1 {[%clk 0:02:15]}  f6 {[%clk 0:02:04]} 18. N3d2 {[%clk 0:02:11]}  a5 {[%clk 0:01:39]} 19. Nxe4 {[%clk 0:01:49]}  dxe4 {[%clk 0:01:39]} 20. Bc4 {[%clk 0:01:47]}  O-O-O {[%clk 0:01:28]} 21. O-O-O {[%clk 0:01:44]}  Kb8 {[%clk 0:01:18]} 22. Nd2 {[%clk 0:01:33]}  e5 {[%clk 0:01:17]} 23. dxe5 {[%clk 0:01:27]}  fxe5 {[%clk 0:01:17]} 24. f5 {[%clk 0:01:27]}  h5 {[%clk 0:01:14]} 25. Rxh5 {[%clk 0:01:14]}  Rxh5 {[%clk 0:01:10]} 26. Qxh5 {[%clk 0:01:15]}  Rh8 {[%clk 0:01:07]} 27. Qe2 {[%clk 0:01:14]}  Qc5 {[%clk 0:01:01]} 28. g4 {[%clk 0:01:04]}  a4 {[%clk 0:00:55]} 29. a3 {[%clk 0:01:04]}  Bf6 {[%clk 0:00:53]} 30. Kb1 {[%clk 0:00:43]}  Bc6 {[%clk 0:00:53]} 31. Nf1 {[%clk 0:00:39]}  Rh1 {[%clk 0:00:31]} 32. Be6 {[%clk 0:00:34]}  Bb5 {[%clk 0:00:29]} 33. c4 {[%clk 0:00:34]}  Bc6 {[%clk 0:00:29]} 34. Kc1 {[%clk 0:00:30]}  b5 {[%clk 0:00:23]} 35. Nd2 {[%clk 0:00:27]}  Rh2 {[%clk 0:00:20]} 36. Nf1 {[%clk 0:00:19]}  Rh1 {[%clk 0:00:21]} 37. Nd2 {[%clk 0:00:20]}  Rh8 {[%clk 0:00:21]} 38. Kb1 {[%clk 0:00:19]}  b4 {[%clk 0:00:21]} 39. axb4 {[%clk 0:00:17]}  Qxb4 {[%clk 0:00:22]} 40. Ka1 {[%clk 0:00:16]}  Ka7 {[%clk 0:00:22]} 41. Nb1 {[%clk 0:00:16]}  Rb8 {[%clk 0:00:20]} 42. Qc2 {[%clk 0:00:16]}  Be7 {[%clk 0:00:19]} 43. Nc3 {[%clk 0:00:15]}  Bc5 {[%clk 0:00:19]} 44. Nd5 {[%clk 0:00:14]}  Qa5 {[%clk 0:00:18]} 45. Qc3 {[%clk 0:00:12]}  Qa6 {[%clk 0:00:14]} 46. f6 {[%clk 0:00:11]}  a3 {[%clk 0:00:13]} 47. b4 {[%clk 0:00:09]}  Bxd5 {[%clk 0:00:13]} 48. cxd5 {[%clk 0:00:09]}  Bxb4 {[%clk 0:00:13]} 49. Qxc7+ {[%clk 0:00:07]}  Rb7 {[%clk 0:00:14]} 50. Qc2 {[%clk 0:00:07]}  Qa5 {[%clk 0:00:13]} 51. Ka2 {[%clk 0:00:00]}  Bc3 {[%clk 0:00:13]} 0-1


[Site "https://www.chess.com"]

[Event "Titled Tuesday Blitz August 08 Early 2023"]
[White "Zeynalli, Rashad"]
[Black "reevecanada"]
[WhiteFideId "13403320"]
[WhiteElo "2650"]
[BlackElo "2521"]
[Result "1/2-1/2"]
[Round "8"]
[TimeControl "180+1"]
[Date "2023.08.08"]
[WhiteClock "0:00:11"]
[BlackClock "0:00:07"]
[Board "77"]

1. e4 {[%clk 0:03:00]}  c5 {[%clk 0:02:48]} 2. Nf3 {[%clk 0:03:00]}  d6 {[%clk 0:02:48]} 3. Bb5+ {[%clk 0:03:00]}  Bd7 {[%clk 0:02:46]} 4. Bxd7+ {[%clk 0:03:00]}  Qxd7 {[%clk 0:02:47]} 5. c4 {[%clk 0:03:00]}  e5 {[%clk 0:02:45]} 6. a3 {[%clk 0:02:49]}  Nc6 {[%clk 0:02:44]} 7. Nc3 {[%clk 0:02:45]}  g6 {[%clk 0:02:42]} 8. O-O {[%clk 0:02:42]}  Nge7 {[%clk 0:02:40]} 9. b4 {[%clk 0:02:38]}  b6 {[%clk 0:02:38]} 10. bxc5 {[%clk 0:02:36]}  bxc5 {[%clk 0:02:36]} 11. Nd5 {[%clk 0:02:34]}  Nxd5 {[%clk 0:02:30]} 12. exd5 {[%clk 0:02:29]}  Ne7 {[%clk 0:02:30]} 13. Rb1 {[%clk 0:02:20]}  Bg7 {[%clk 0:02:26]} 14. d3 {[%clk 0:02:20]}  O-O {[%clk 0:02:25]} 15. Qb3 {[%clk 0:02:13]}  Rac8 {[%clk 0:02:23]} 16. Qb7 {[%clk 0:02:09]}  Rc7 {[%clk 0:02:21]} 17. Qa6 {[%clk 0:02:09]}  h6 {[%clk 0:02:20]} 18. Bd2 {[%clk 0:02:04]}  Re8 {[%clk 0:02:00]} 19. Ba5 {[%clk 0:02:04]}  Rcc8 {[%clk 0:01:57]} 20. Rb7 {[%clk 0:02:01]}  Qf5 {[%clk 0:01:50]} 21. Qxd6 {[%clk 0:01:58]}  Bf6 {[%clk 0:01:42]} 22. Nd2 {[%clk 0:01:49]}  Kg7 {[%clk 0:01:27]} 23. Ne4 {[%clk 0:01:47]}  Ng8 {[%clk 0:01:27]} 24. Qa6 {[%clk 0:01:28]}  Be7 {[%clk 0:01:13]} 25. d6 {[%clk 0:01:19]}  Qe6 {[%clk 0:01:06]} 26. Qxa7 {[%clk 0:01:12]}  Ra8 {[%clk 0:00:58]} 27. Qxc5 {[%clk 0:01:09]}  Rec8 {[%clk 0:00:50]} 28. Rc7 {[%clk 0:00:59]}  Rxc7 {[%clk 0:00:39]} 29. Bxc7 {[%clk 0:01:00]}  Bf8 {[%clk 0:00:38]} 30. d4 {[%clk 0:00:51]}  f5 {[%clk 0:00:27]} 31. Nc3 {[%clk 0:00:48]}  exd4 {[%clk 0:00:19]} 32. Qxd4+ {[%clk 0:00:49]}  Kf7 {[%clk 0:00:19]} 33. d7 {[%clk 0:00:45]}  Be7 {[%clk 0:00:18]} 34. d8=Q {[%clk 0:00:45]}  Bxd8 {[%clk 0:00:18]} 35. Bxd8 {[%clk 0:00:46]}  Rxa3 {[%clk 0:00:18]} 36. Nb5 {[%clk 0:00:40]}  Ra2 {[%clk 0:00:16]} 37. Nd6+ {[%clk 0:00:39]}  Kf8 {[%clk 0:00:16]} 38. c5 {[%clk 0:00:36]}  Rc2 {[%clk 0:00:15]} 39. Bb6 {[%clk 0:00:29]}  Qe2 {[%clk 0:00:14]} 40. Qe3 {[%clk 0:00:26]}  Qxe3 {[%clk 0:00:09]} 41. fxe3 {[%clk 0:00:27]}  Ke7 {[%clk 0:00:09]} 42. Rd1 {[%clk 0:00:25]}  Ke6 {[%clk 0:00:09]} 43. Nc8 {[%clk 0:00:20]}  Nf6 {[%clk 0:00:08]} 44. Rd6+ {[%clk 0:00:18]}  Ke5 {[%clk 0:00:08]} 45. Rd1 {[%clk 0:00:16]}  Ng4 {[%clk 0:00:08]} 46. Bc7+ {[%clk 0:00:15]}  Ke4 {[%clk 0:00:08]} 47. Nd6+ {[%clk 0:00:14]}  Kxe3 {[%clk 0:00:08]} 48. h3 {[%clk 0:00:13]}  Ke2 {[%clk 0:00:08]} 49. Rf1 {[%clk 0:00:12]}  Ne3 {[%clk 0:00:09]} 50. Rf2+ {[%clk 0:00:13]}  Kd3 {[%clk 0:00:08]} 51. Rxc2 {[%clk 0:00:13]}  Nxc2 {[%clk 0:00:08]} 52. c6 {[%clk 0:00:13]}  Nd4 {[%clk 0:00:08]} 53. Nf7 {[%clk 0:00:11]}  Nxc6 {[%clk 0:00:07]} 54. Nxh6 {[%clk 0:00:12]}  Ke4 {[%clk 0:00:07]} 55. Kf2 {[%clk 0:00:11]}  f4 {[%clk 0:00:05]} 56. Ng4 {[%clk 0:00:10]}  Kf5 {[%clk 0:00:05]} 57. Bb6 {[%clk 0:00:08]}  Nb4 {[%clk 0:00:04]} 58. Ba7 {[%clk 0:00:07]}  Nd3+ {[%clk 0:00:04]} 59. Ke2 {[%clk 0:00:06]}  Nb4 {[%clk 0:00:04]} 60. Bb8 {[%clk 0:00:06]}  Nc6 {[%clk 0:00:04]} 61. Bc7 {[%clk 0:00:06]}  Nd4+ {[%clk 0:00:04]} 62. Kf2 {[%clk 0:00:06]}  Nb3 {[%clk 0:00:04]} 63. Nh6+ {[%clk 0:00:06]}  Kg5 {[%clk 0:00:04]} 64. Nf7+ {[%clk 0:00:06]}  Kf5 {[%clk 0:00:04]} 65. Nd6+ {[%clk 0:00:07]}  Ke6 {[%clk 0:00:04]} 66. Ne4 {[%clk 0:00:07]}  Kf5 {[%clk 0:00:04]} 67. Nc3 {[%clk 0:00:07]}  Nc5 {[%clk 0:00:03]} 68. Ne2 {[%clk 0:00:06]}  Nd3+ {[%clk 0:00:03]} 69. Kf3 {[%clk 0:00:06]}  Ne1+ {[%clk 0:00:02]} 70. Kf2 {[%clk 0:00:06]}  Nd3+ {[%clk 0:00:03]} 71. Kf1 {[%clk 0:00:07]}  g5 {[%clk 0:00:03]} 72. Ng1 {[%clk 0:00:07]}  g4 {[%clk 0:00:04]} 73. hxg4+ {[%clk 0:00:07]}  Kxg4 {[%clk 0:00:04]} 74. Nf3 {[%clk 0:00:07]}  Nc5 {[%clk 0:00:05]} 75. Ne5+ {[%clk 0:00:07]}  Kf5 {[%clk 0:00:04]} 76. Ke2 {[%clk 0:00:07]}  Ne6 {[%clk 0:00:05]} 77. Nd3 {[%clk 0:00:07]}  Nxc7 {[%clk 0:00:04]} 78. Kf3 {[%clk 0:00:07]}  Nd5 {[%clk 0:00:05]} 79. Nf2 {[%clk 0:00:06]}  Nf6 {[%clk 0:00:05]} 80. Nd3 {[%clk 0:00:06]}  Nd5 {[%clk 0:00:05]} 81. Nc5 {[%clk 0:00:06]}  Nf6 {[%clk 0:00:05]} 82. Ne4 {[%clk 0:00:06]}  Nd5 {[%clk 0:00:05]} 83. Nd6+ {[%clk 0:00:05]}  Ke5 {[%clk 0:00:05]} 84. Nc4+ {[%clk 0:00:06]}  Kf5 {[%clk 0:00:05]} 85. Nd2 {[%clk 0:00:06]}  Nf6 {[%clk 0:00:05]} 86. Nb3 {[%clk 0:00:06]}  Ng4 {[%clk 0:00:06]} 87. Nd4+ {[%clk 0:00:06]}  Kg5 {[%clk 0:00:06]} 88. Ne6+ {[%clk 0:00:07]}  Kf5 {[%clk 0:00:07]} 89. Nxf4 {[%clk 0:00:08]}  Ne5+ {[%clk 0:00:07]} 90. Kg3 {[%clk 0:00:08]}  Ke4 {[%clk 0:00:07]} 91. Nh3 {[%clk 0:00:08]}  Nc4 {[%clk 0:00:07]} 92. Nf2+ {[%clk 0:00:08]}  Kf5 {[%clk 0:00:06]} 93. Kh4 {[%clk 0:00:09]}  Ne3 {[%clk 0:00:06]} 94. g3 {[%clk 0:00:09]}  Ng2+ {[%clk 0:00:06]} 95. Kh3 {[%clk 0:00:09]}  Ne3 {[%clk 0:00:07]} 96. Nd3 {[%clk 0:00:09]}  Kg5 {[%clk 0:00:07]} 97. Nf4 {[%clk 0:00:09]}  Nf1 {[%clk 0:00:07]} 98. Ne6+ {[%clk 0:00:10]}  Kf6 {[%clk 0:00:07]} 99. Nd4 {[%clk 0:00:11]}  Nxg3 {[%clk 0:00:07]} 1/2-1/2


[Site "https://www.chess.com"]

[Event "Titled Tuesday Blitz August 08 Early 2023"]
[White "Piesik, Piotr"]
[Black "Vyatkin, Dmitry"]
[WhiteFideId "1136194"]
[BlackFideId "4171900"]
[WhiteElo "2649"]
[BlackElo "2519"]
[Result "0-1"]
[Round "8"]
[TimeControl "180+1"]
[Date "2023.08.08"]
[WhiteClock "0:01:24"]
[BlackClock "0:00:36"]
[Board "78"]

1. Nf3 {[%clk 0:03:00]}  Nf6 {[%clk 0:02:56]} 2. g3 {[%clk 0:03:00]}  g6 {[%clk 0:02:55]} 3. Bg2 {[%clk 0:03:01]}  Bg7 {[%clk 0:02:56]} 4. O-O {[%clk 0:03:02]}  O-O {[%clk 0:02:55]} 5. d4 {[%clk 0:03:03]}  d6 {[%clk 0:02:54]} 6. Nbd2 {[%clk 0:03:03]}  Nc6 {[%clk 0:02:40]} 7. e4 {[%clk 0:03:02]}  e5 {[%clk 0:02:38]} 8. dxe5 {[%clk 0:03:03]}  dxe5 {[%clk 0:02:30]} 9. c3 {[%clk 0:03:03]}  Qe7 {[%clk 0:02:27]} 10. b4 {[%clk 0:03:00]}  Rd8 {[%clk 0:02:25]} 11. Qe2 {[%clk 0:02:58]}  a6 {[%clk 0:01:47]} 12. a4 {[%clk 0:02:57]}  Bg4 {[%clk 0:01:41]} 13. Ba3 {[%clk 0:02:56]}  Qd7 {[%clk 0:01:37]} 14. Nc4 {[%clk 0:02:51]}  Bxf3 {[%clk 0:01:24]} 15. Bxf3 {[%clk 0:02:34]}  Qd3 {[%clk 0:01:23]} 16. b5 {[%clk 0:02:08]}  Qxe2 {[%clk 0:01:13]} 17. Bxe2 {[%clk 0:02:08]}  axb5 {[%clk 0:01:14]} 18. axb5 {[%clk 0:02:07]}  Na5 {[%clk 0:01:14]} 19. f3 {[%clk 0:02:03]}  Nxc4 {[%clk 0:01:10]} 20. Bxc4 {[%clk 0:02:04]}  Bf8 {[%clk 0:01:10]} 21. Bxf8 {[%clk 0:02:02]}  Kxf8 {[%clk 0:01:10]} 22. Kf2 {[%clk 0:01:54]}  Ke7 {[%clk 0:01:02]} 23. Ke3 {[%clk 0:01:54]}  Nd7 {[%clk 0:01:01]} 24. Bd5 {[%clk 0:01:51]}  Nc5 {[%clk 0:01:01]} 25. f4 {[%clk 0:01:45]}  exf4+ {[%clk 0:01:00]} 26. gxf4 {[%clk 0:01:41]}  f6 {[%clk 0:00:58]} 27. c4 {[%clk 0:01:40]}  Kd6 {[%clk 0:00:36]} 28. Kd4 {[%clk 0:01:24]}  Nb3+ {[%clk 0:00:36]} 0-1


[Site "https://www.chess.com"]

[Event "Titled Tuesday Blitz August 08 Early 2023"]
[White "Saya, Ethan"]
[Black "Bach Ngoc Thuy Duong"]
[WhiteFideId "26095181"]
[BlackFideId "12408956"]
[WhiteElo "2630"]
[BlackElo "2505"]
[Result "1-0"]
[Round "8"]
[TimeControl "180+1"]
[Date "2023.08.08"]
[WhiteClock "0:00:23"]
[BlackClock "0:00:02"]
[Board "83"]

1. e4 {[%clk 0:03:00]}  c5 {[%clk 0:02:59]} 2. Nf3 {[%clk 0:02:59]}  d6 {[%clk 0:02:55]} 3. d4 {[%clk 0:02:45]}  cxd4 {[%clk 0:02:50]} 4. Qxd4 {[%clk 0:02:45]}  a6 {[%clk 0:02:49]} 5. c4 {[%clk 0:02:43]}  Nc6 {[%clk 0:02:48]} 6. Qd3 {[%clk 0:02:40]}  g6 {[%clk 0:02:47]} 7. Nc3 {[%clk 0:02:40]}  Bg7 {[%clk 0:02:47]} 8. Be2 {[%clk 0:02:39]}  Bg4 {[%clk 0:02:46]} 9. O-O {[%clk 0:02:36]}  Rc8 {[%clk 0:02:44]} 10. b3 {[%clk 0:02:21]}  Nf6 {[%clk 0:02:42]} 11. Bb2 {[%clk 0:02:17]}  Nd7 {[%clk 0:02:42]} 12. Qd2 {[%clk 0:02:08]}  Bxf3 {[%clk 0:02:36]} 13. Bxf3 {[%clk 0:02:08]}  O-O {[%clk 0:02:02]} 14. Be2 {[%clk 0:02:00]}  Nc5 {[%clk 0:01:55]} 15. f3 {[%clk 0:01:57]}  Nd4 {[%clk 0:01:06]} 16. Nd5 {[%clk 0:01:34]}  Nce6 {[%clk 0:01:05]} 17. f4 {[%clk 0:01:24]}  b5 {[%clk 0:00:47]} 18. f5 {[%clk 0:01:18]}  Nxe2+ {[%clk 0:00:47]} 19. Qxe2 {[%clk 0:01:18]}  Nd4 {[%clk 0:00:47]} 20. Qf2 {[%clk 0:01:13]}  e5 {[%clk 0:00:41]} 21. f6 {[%clk 0:01:07]}  Bh6 {[%clk 0:00:40]} 22. Ne7+ {[%clk 0:00:51]}  Kh8 {[%clk 0:00:40]} 23. Nxc8 {[%clk 0:00:52]}  Qxc8 {[%clk 0:00:39]} 24. Bxd4 {[%clk 0:00:53]}  exd4 {[%clk 0:00:38]} 25. Qxd4 {[%clk 0:00:54]}  Qc5 {[%clk 0:00:37]} 26. Qxc5 {[%clk 0:00:53]}  dxc5 {[%clk 0:00:38]} 27. Rfe1 {[%clk 0:00:47]}  Re8 {[%clk 0:00:36]} 28. Rad1 {[%clk 0:00:45]}  Bf4 {[%clk 0:00:33]} 29. Rd5 {[%clk 0:00:38]}  Be5 {[%clk 0:00:32]} 30. Kf1 {[%clk 0:00:29]}  Bxf6 {[%clk 0:00:21]} 31. Rxc5 {[%clk 0:00:28]}  Bc3 {[%clk 0:00:20]} 32. Re2 {[%clk 0:00:25]}  bxc4 {[%clk 0:00:07]} 33. Rxc4 {[%clk 0:00:26]}  Be5 {[%clk 0:00:06]} 34. g3 {[%clk 0:00:25]}  Re6 {[%clk 0:00:04]} 35. Kg2 {[%clk 0:00:25]}  Kg7 {[%clk 0:00:05]} 36. Rec2 {[%clk 0:00:25]}  h5 {[%clk 0:00:04]} 37. Rc6 {[%clk 0:00:25]}  Re7 {[%clk 0:00:02]} 38. Rxa6 {[%clk 0:00:25]}  Bf6 {[%clk 0:00:03]} 39. Re2 {[%clk 0:00:24]}  Bd4 {[%clk 0:00:03]} 40. Rd6 {[%clk 0:00:22]}  Bc5 {[%clk 0:00:03]} 41. Rd5 {[%clk 0:00:23]}  Bb4 {[%clk 0:00:03]} 42. a4 {[%clk 0:00:23]}  Rd7 {[%clk 0:00:02]} 43. Rxd7 {[%clk 0:00:23]} 1-0


[Site "https://www.chess.com"]

[Event "Titled Tuesday Blitz August 08 Early 2023"]
[White "Domingo Nunez, Ruben"]
[Black "Iljin, Timofey"]
[WhiteFideId "22245570"]
[BlackFideId "14110180"]
[WhiteElo "2624"]
[BlackElo "2485"]
[Result "1-0"]
[Round "8"]
[TimeControl "180+1"]
[Date "2023.08.08"]
[WhiteClock "0:00:54"]
[BlackClock "0:00:02"]
[Board "85"]

1. Nf3 {[%clk 0:03:00]}  f5 {[%clk 0:02:59]} 2. b3 {[%clk 0:02:59]}  Nf6 {[%clk 0:03:00]} 3. Bb2 {[%clk 0:03:00]}  g6 {[%clk 0:03:01]} 4. e3 {[%clk 0:03:00]}  Bg7 {[%clk 0:03:01]} 5. Be2 {[%clk 0:03:01]}  O-O {[%clk 0:03:02]} 6. O-O {[%clk 0:03:02]}  d6 {[%clk 0:03:02]} 7. d4 {[%clk 0:03:02]}  Qe8 {[%clk 0:03:03]} 8. c4 {[%clk 0:03:02]}  Nc6 {[%clk 0:02:59]} 9. d5 {[%clk 0:03:02]}  Nb8 {[%clk 0:02:58]} 10. Qc2 {[%clk 0:02:59]}  a5 {[%clk 0:02:59]} 11. Nc3 {[%clk 0:02:59]}  Na6 {[%clk 0:02:59]} 12. Nb5 {[%clk 0:03:00]}  Bd7 {[%clk 0:02:59]} 13. Nbd4 {[%clk 0:03:00]}  c5 {[%clk 0:02:59]} 14. Ne6 {[%clk 0:02:56]}  Bxe6 {[%clk 0:02:59]} 15. dxe6 {[%clk 0:02:57]}  Nc7 {[%clk 0:02:59]} 16. Nd2 {[%clk 0:02:38]}  Nxe6 {[%clk 0:02:59]} 17. Bf3 {[%clk 0:02:39]}  Rb8 {[%clk 0:02:49]} 18. Bc3 {[%clk 0:02:36]}  b6 {[%clk 0:02:42]} 19. a3 {[%clk 0:02:36]}  Ng5 {[%clk 0:02:40]} 20. Be2 {[%clk 0:02:37]}  e5 {[%clk 0:02:41]} 21. b4 {[%clk 0:02:37]}  Nge4 {[%clk 0:02:36]} 22. Bb2 {[%clk 0:02:37]}  Nxd2 {[%clk 0:02:35]} 23. Qxd2 {[%clk 0:02:37]}  Ne4 {[%clk 0:02:28]} 24. Qd1 {[%clk 0:02:26]}  Qe7 {[%clk 0:02:13]} 25. Rb1 {[%clk 0:02:26]}  axb4 {[%clk 0:02:08]} 26. axb4 {[%clk 0:02:25]}  cxb4 {[%clk 0:02:09]} 27. Qb3 {[%clk 0:02:14]}  Nd2 {[%clk 0:02:06]} 28. Qxb4 {[%clk 0:02:14]}  Nxf1 {[%clk 0:01:56]} 29. Bxf1 {[%clk 0:02:15]}  g5 {[%clk 0:01:50]} 30. Ba3 {[%clk 0:02:15]}  Rfd8 {[%clk 0:01:44]} 31. Rd1 {[%clk 0:02:14]}  g4 {[%clk 0:01:31]} 32. e4 {[%clk 0:02:13]}  f4 {[%clk 0:01:30]} 33. Be2 {[%clk 0:02:13]}  h5 {[%clk 0:01:28]} 34. Qb5 {[%clk 0:02:13]}  Ra8 {[%clk 0:01:11]} 35. Qb3 {[%clk 0:02:12]}  Qe6 {[%clk 0:01:03]} 36. Bf1 {[%clk 0:02:07]}  h4 {[%clk 0:00:56]} 37. Rd5 {[%clk 0:02:07]}  Kh8 {[%clk 0:00:47]} 38. Bb2 {[%clk 0:02:05]}  Qg6 {[%clk 0:00:32]} 39. Bc3 {[%clk 0:01:36]}  f3 {[%clk 0:00:20]} 40. g3 {[%clk 0:01:36]}  hxg3 {[%clk 0:00:21]} 41. hxg3 {[%clk 0:01:36]}  Kh7 {[%clk 0:00:07]} 42. Qxb6 {[%clk 0:01:30]}  Rab8 {[%clk 0:00:05]} 43. Qa5 {[%clk 0:01:25]}  Rd7 {[%clk 0:00:03]} 44. c5 {[%clk 0:01:21]}  Rb1 {[%clk 0:00:03]} 45. Qa4 {[%clk 0:01:14]}  Rf7 {[%clk 0:00:02]} 46. Qc2 {[%clk 0:01:13]}  Rbb7 {[%clk 0:00:01]} 47. Rxd6 {[%clk 0:01:11]}  Qh5 {[%clk 0:00:01]} 48. c6 {[%clk 0:01:10]}  Rbc7 {[%clk 0:00:01]} 49. Ba5 {[%clk 0:01:03]}  Rce7 {[%clk 0:00:01]} 50. c7 {[%clk 0:01:03]}  Rxc7 {[%clk 0:00:02]} 51. Bxc7 {[%clk 0:01:04]}  Bf8 {[%clk 0:00:02]} 52. Rd5 {[%clk 0:01:01]}  Kg8 {[%clk 0:00:02]} 53. Rxe5 {[%clk 0:00:57]}  Rxc7 {[%clk 0:00:01]} 54. Qxc7 {[%clk 0:00:53]}  Qf7 {[%clk 0:00:01]} 55. Bc4 {[%clk 0:00:53]}  Qxc4 {[%clk 0:00:01]} 56. Qxc4+ {[%clk 0:00:54]}  Kh7 {[%clk 0:00:01]} 57. Qf7+ {[%clk 0:00:54]}  Bg7 {[%clk 0:00:02]} 58. Rh5# {[%clk 0:00:54]} 1-0


[Site "https://www.chess.com"]

[Event "Titled Tuesday Blitz August 08 Early 2023"]
[White "HamedWafa4"]
[Black "Rodchenkov, Sergey D."]
[BlackFideId "4168712"]
[WhiteElo "2617"]
[BlackElo "2485"]
[Result "0-1"]
[Round "8"]
[TimeControl "180+1"]
[Date "2023.08.08"]
[WhiteClock "0:01:33"]
[BlackClock "0:01:08"]
[Board "86"]

1. e4 {[%clk 0:02:59]}  c5 {[%clk 0:03:00]} 2. Nc3 {[%clk 0:02:58]}  d6 {[%clk 0:03:00]} 3. d4 {[%clk 0:02:57]}  cxd4 {[%clk 0:03:01]} 4. Qxd4 {[%clk 0:02:57]}  Nc6 {[%clk 0:02:58]} 5. Qd2 {[%clk 0:02:56]}  Nf6 {[%clk 0:02:58]} 6. b3 {[%clk 0:02:56]}  g6 {[%clk 0:02:57]} 7. Bb2 {[%clk 0:02:56]}  Bg7 {[%clk 0:02:58]} 8. O-O-O {[%clk 0:02:56]}  O-O {[%clk 0:02:59]} 9. f4 {[%clk 0:02:40]}  a5 {[%clk 0:02:58]} 10. Nf3 {[%clk 0:02:38]}  a4 {[%clk 0:02:56]} 11. e5 {[%clk 0:02:24]}  Nd7 {[%clk 0:02:51]} 12. Nxa4 {[%clk 0:02:23]}  Nb6 {[%clk 0:02:50]} 13. Nxb6 {[%clk 0:02:21]}  Qxb6 {[%clk 0:02:51]} 14. Kb1 {[%clk 0:02:22]}  Bg4 {[%clk 0:02:50]} 15. exd6 {[%clk 0:02:15]}  Bxb2 {[%clk 0:02:24]} 16. Kxb2 {[%clk 0:02:14]}  Nb4 {[%clk 0:02:02]} 17. a4 {[%clk 0:01:53]}  Rfc8 {[%clk 0:01:36]} 18. Bd3 {[%clk 0:01:51]}  Bxf3 {[%clk 0:01:27]} 19. gxf3 {[%clk 0:01:46]}  Rxa4 {[%clk 0:01:21]} 20. Ra1 {[%clk 0:01:41]}  Qd4+ {[%clk 0:01:14]} 21. c3 {[%clk 0:01:36]}  Nxd3+ {[%clk 0:01:09]} 22. Kc2 {[%clk 0:01:33]}  Nb4+ {[%clk 0:01:08]} 0-1


[Site "https://www.chess.com"]